Workbook

Sheet Fadenpendel
A1: Fadenpendel / Stabpendel
A3: Startwerte:
A4: j0 = | B4: =x0a-180 -> 90 | C4: 270
A5: s0 = | B5: =(x0/180*3.14159)*l -> 0.7853975 | C5: (m)
A6: v0 = | B6: =v0a/100 -> 0 | C6: 0
A7: Dämpfung r = | B7: =ra/1000 -> 0 | C7: 0
A8: Rückstell g = | B8: 9.81 | C8: (m/s²) | D8: Tharm = | E8: =2*PI()*SQRT(l/g) -> 1.418503353
A9: Länge l = | B9: 0.5 | C9: 99
A10: Zeitschritt = | B10: =Delta_t_a/1000 -> 0.002 | C10: 2
A11: Startzeit = | B11: 0
A12: Endzeit = | B12: =t0+5000*Delta_t -> 10
C14: Anzahl der Extrema:
D15: =COUNT(C21:C520) -> 0
C16: Mittelwert Tsim :
C17: =IF(A21<>"",AVERAGE(C21:C120),"") ->  | D17: =IF(A21<>"",AVERAGE(D21:D120),"") -> 
A19: TExtrema | B19: Ampl. | C19: Abstände der Extrema:
C20: einfach | D20: doppelt
C21: =IF(A21<>0,A21,"") ->  | D21: =IF(A21<>0,2*C21,"") -> 
C22: =IF(A22<>0,A22-A21,"") ->  | D22: =IF(A22<>0,2*C22,"") -> 
C86: =IF(A86<>0,A86-A85,"") ->  | D86: =IF(A86<>0,2*C86,"") -> 
C150: =IF(A150<>0,A150-A149,"") ->  | D150: =IF(A150<>0,2*C150,"") -> 
C214: =IF(A214<>0,A214-A213,"") ->  | D214: =IF(A214<>0,2*C214,"") -> 
C278: =IF(A278<>0,A278-A277,"") ->  | D278: =IF(A278<>0,2*C278,"") -> 
C342: =IF(A342<>0,A342-A341,"") ->  | D342: =IF(A342<>0,2*C342,"") -> 
C406: =IF(A406<>0,A406-A405,"") ->  | D406: =IF(A406<>0,2*C406,"") -> 
C470: =IF(A470<>0,A470-A469,"") ->  | D470: =IF(A470<>0,2*C470,"") -> 

Sheet sva
A1: Tabellen für s, v und a
A2: Für die Berechnung wurde ein verbessertes Eulerverfahren nach https://homepage.univie.ac.at/Franz.Embacher/Bewgl/Bewegungsgleichungen.pdf angewendet.
D4: Zeit | E4: ax | F4: sx | G4: vx | H4: ax,harm | I4: sx,harm | J4: vx,harm
D5: =t0 -> 0 | E5: ./. | F5: =s0 -> 0.7853975 | G5: =v0 -> 0 | H5: ./. | I5: =s0 -> 0.7853975 | J5: =v0 -> 0
D6: =D5+Delta_t -> 0.002 | E6: =-g*SIN(F5/l)-_r*G5 -> -9.81 | F6: =F5+G5*Delta_t+E6/2*Delta_t^2 -> 0.78537788 | G6: =G5+(-g*SIN(F5/l)-_r*G5-g*SIN(F6/l)-_r*G5)/2*Delta_t -> -0.01961999999 | H6: =-g*(I5/l)-_r*J5 -> -15.40949895 | I6: =I5+J5*Delta_t+H6*Delta_t^2 -> 0.785335862 | J6: =J5+(-g*I5/l-_r*I6-g*I6-_r*J5)/2*Delta_t -> -0.02311364376
D7: 0.004 | E7: -9.809999992 | F7: 0.78531902 | G7: -0.03923999986 | H7: -15.40828961 | I7: 0.7852280016 | J7: -0.04622502006
D8: 0.006 | E8: -9.809999877 | F8: 0.78522092 | G8: -0.05885999912 | H8: -15.40617339 | I8: 0.7850739268 | J8: -0.06933276868
D9: 0.008 | E9: -9.809999384 | F9: 0.78508358 | G9: -0.07847999656 | H9: -15.40315044 | I9: 0.7848736487 | J9: -0.09243552961
D10: 0.01 | E10: -9.809998058 | F10: 0.784907 | G10: -0.09809998989 | H10: -15.39922099 | I10: 0.7846271807 | J10: -0.1155319432
D11: 0.012 | E11: -9.809995267 | F11: 0.78469118 | G11: -0.1177199753 | H11: -15.39438529 | I11: 0.7843345393 | J11: -0.1386206504
D12: 0.014 | E12: -9.809990193 | F12: 0.7844361201 | G12: -0.1373399474 | H12: -15.38864366 | I12: 0.7839957434 | J12: -0.1617002923
D13: 0.016 | E13: -9.809981841 | F13: 0.7841418203 | G13: -0.1569598983 | H13: -15.38199649 | I13: 0.7836108149 | J13: -0.1847695108
D14: 0.018 | E14: -9.809969032 | F14: 0.7838082805 | G14: -0.1765798177 | H14: -15.37444419 | I14: 0.7831797781 | J14: -0.2078269487
D15: 0.02 | E15: -9.809950406 | F15: 0.783435501 | G15: -0.1961996925 | H15: -15.36598725 | I15: 0.7827026602 | J15: -0.230871249
D16: 0.022 | E16: -9.809924423 | F16: 0.7830234817 | G16: -0.2158195063 | H16: -15.35662619 | I16: 0.7821794912 | J16: -0.253901056
D17: 0.024 | E17: -9.809889361 | F17: 0.782572223 | G17: -0.235439239 | H17: -15.34636162 | I17: 0.7816103037 | J17: -0.2769150147
D18: 0.026 | E18: -9.809843316 | F18: 0.7820817248 | G18: -0.2550588665 | H18: -15.33519416 | I18: 0.7809951329 | J18: -0.2999117711
D19: 0.028 | E19: -9.809784205 | F19: 0.7815519875 | G19: -0.2746783605 | H19: -15.32312451 | I19: 0.7803340168 | J19: -0.3228899723
D20: 0.03 | E20: -9.809709761 | F20: 0.7809830114 | G20: -0.2942976878 | H20: -15.31015341 | I20: 0.7796269963 | J20: -0.3458482666
D21: 0.032 | E21: -9.809617539 | F21: 0.7803747967 | G21: -0.3139168102 | H21: -15.29628167 | I21: 0.7788741146 | J21: -0.3687853033
D22: 0.034 | E22: -9.809504909 | F22: 0.7797273441 | G22: -0.3335356842 | H22: -15.28151013 | I22: 0.778075418 | J22: -0.3916997333
D23: 0.036 | E23: -9.809369063 | F23: 0.779040654 | G23: -0.3531542603 | H23: -15.2658397 | I23: 0.7772309551 | J23: -0.4145902086
D24: 0.038 | E24: -9.809207011 | F24: 0.7783147271 | G24: -0.3727724829 | H24: -15.24927134 | I24: 0.7763407776 | J24: -0.437455383
D25: 0.04 | E25: -9.809015582 | F25: 0.7775495641 | G25: -0.3923902899 | H25: -15.23180606 | I25: 0.7754049396 | J25: -0.4602939115
D26: 0.042 | E26: -9.808791423 | F26: 0.7767451659 | G26: -0.4120076123 | H26: -15.21344492 | I26: 0.774423498 | J26: -0.483104451
D27: 0.044 | E27: -9.808531002 | F27: 0.7759015336 | G27: -0.4316243739 | H27: -15.19418903 | I27: 0.7733965124 | J27: -0.5058856598
D28: 0.046 | E28: -9.808230604 | F28: 0.7750186684 | G28: -0.4512404908 | H28: -15.17403957 | I28: 0.7723240449 | J28: -0.5286361982
D29: 0.048 | E29: -9.807886336 | F29: 0.7740965717 | G29: -0.4708558713 | H29: -15.15299776 | I29: 0.7712061605 | J29: -0.5513547284
D30: 0.05 | E30: -9.807494123 | F30: 0.7731352449 | G30: -0.4904704151 | H30: -15.13106487 | I30: 0.7700429268 | J30: -0.5740399144
D31: 0.052 | E31: -9.807049709 | F31: 0.77213469 | G31: -0.5100840135 | H31: -15.10824222 | I31: 0.768834414 | J31: -0.5966904222
D32: 0.054 | E32: -9.806548657 | F32: 0.7710949089 | G32: -0.5296965485 | H32: -15.0845312 | I32: 0.767580695 | J32: -0.6193049201
D33: 0.056 | E33: -9.805986353 | F33: 0.7700159038 | G33: -0.5493078929 | H33: -15.05993324 | I33: 0.7662818455 | J33: -0.6418820782
D34: 0.058 | E34: -9.805358001 | F34: 0.7688976773 | G34: -0.5689179095 | H34: -15.03444981 | I34: 0.7649379435 | J34: -0.6644205692
D35: 0.06 | E35: -9.804658625 | F35: 0.7677402322 | G35: -0.5885264512 | H35: -15.00808245 | I35: 0.76354907 | J35: -0.6869190681
D36: 0.062 | E36: -9.80388307 | F36: 0.7665435715 | G36: -0.6081333603 | H36: -14.98083275 | I36: 0.7621153086 | J36: -0.709376252
D37: 0.064 | E37: -9.803026002 | F37: 0.7653076987 | G37: -0.6277384682 | H37: -14.95270235 | I37: 0.7606367452 | J37: -0.7317908008
D38: 0.066 | E38: -9.802081908 | F38: 0.7640326176 | G38: -0.6473415952 | H38: -14.92369294 | I38: 0.7591134689 | J38: -0.7541613969
D39: 0.068 | E39: -9.801045097 | F39: 0.7627183323 | G39: -0.66694255 | H39: -14.89380626 | I39: 0.7575455709 | J39: -0.7764867252
D40: 0.07 | E40: -9.799909698 | F40: 0.7613648474 | G40: -0.6865411293 | H40: -14.8630441 | I40: 0.7559331452 | J40: -0.7987654734
D41: 0.072 | E41: -9.798669664 | F41: 0.7599721678 | G41: -0.7061371178 | H41: -14.83140831 | I41: 0.7542762886 | J41: -0.8209963321
D42: 0.074 | E42: -9.797318771 | F42: 0.758540299 | G42: -0.7257302871 | H42: -14.79890078 | I42: 0.7525751004 | J42: -0.8431779947
D43: 0.076 | E43: -9.795850616 | F43: 0.7570692467 | G43: -0.7453203964 | H43: -14.76552347 | I43: 0.7508296823 | J43: -0.8653091573
D44: 0.078 | E44: -9.794258622 | F44: 0.7555590174 | G44: -0.764907191 | H44: -14.73127837 | I44: 0.7490401389 | J44: -0.8873885194
D45: 0.08 | E45: -9.792536034 | F45: 0.7540096179 | G45: -0.784490403 | H45: -14.69616752 | I45: 0.7472065772 | J45: -0.9094147835
D46: 0.082 | E46: -9.790675923 | F46: 0.7524210558 | G46: -0.8040697501 | H46: -14.66019304 | I46: 0.7453291068 | J46: -0.9313866551
D47: 0.084 | E47: -9.788671187 | F47: 0.7507933389 | G47: -0.8236449358 | H47: -14.62335708 | I47: 0.7434078401 | J47: -0.9533028431
D48: 0.086 | E48: -9.786514547 | F48: 0.749126476 | G48: -0.8432156489 | H48: -14.58566182 | I48: 0.7414428917 | J48: -0.9751620597
D49: 0.088 | E49: -9.784198553 | F49: 0.7474204763 | G49: -0.8627815631 | H49: -14.54710954 | I49: 0.7394343792 | J49: -0.9969630204
D50: 0.09 | E50: -9.781715584 | F50: 0.7456753498 | G50: -0.8823423365 | H50: -14.50770252 | I50: 0.7373824223 | J50: -1.018704445
D51: 0.092 | E51: -9.779057844 | F51: 0.743891107 | G51: -0.9018976117 | H51: -14.46744313 | I51: 0.7352871437 | J51: -1.040385055
D52: 0.094 | E52: -9.77621737 | F52: 0.7420677593 | G52: -0.9214470151 | H52: -14.42633376 | I52: 0.7331486682 | J52: -1.062003577
D53: 0.096 | E53: -9.773186029 | F53: 0.7402053189 | G53: -0.9409901567 | H53: -14.38437687 | I53: 0.7309671236 | J53: -1.083558741
D54: 0.098 | E54: -9.769955519 | F54: 0.7383037987 | G54: -0.9605266296 | H54: -14.34157496 | I54: 0.7287426398 | J54: -1.105049281
D55: 0.1 | E55: -9.766517371 | F55: 0.7363632124 | G55: -0.9800560099 | H55: -14.29793059 | I55: 0.7264753495 | J55: -1.126473935
D56: 0.102 | E56: -9.762862951 | F56: 0.7343835746 | G56: -0.9995778563 | H56: -14.25344636 | I56: 0.7241653879 | J56: -1.147831444
D57: 0.104 | E57: -9.75898346 | F57: 0.732364901 | G57: -1.01909171 | H57: -14.20812491 | I57: 0.7218128925 | J57: -1.169120553
D58: 0.106 | E58: -9.754869936 | F58: 0.7303072078 | G58: -1.038597093 | H58: -14.16196895 | I58: 0.7194180035 | J58: -1.190340013
D59: 0.108 | E59: -9.750513255 | F59: 0.7282105126 | G59: -1.05809351 | H59: -14.11498123 | I59: 0.7169808635 | J59: -1.211488576
D60: 0.11 | E60: -9.745904134 | F60: 0.7260748338 | G60: -1.077580448 | H60: -14.06716454 | I60: 0.7145016177 | J60: -1.232565002
D61: 0.112 | E61: -9.74103313 | F61: 0.7239001908 | G61: -1.097057371 | H61: -14.01852174 | I61: 0.7119804136 | J61: -1.253568051
D62: 0.114 | E62: -9.735890646 | F62: 0.7216866043 | G62: -1.116523729 | H62: -13.96905572 | I62: 0.7094174013 | J62: -1.274496492
D63: 0.116 | E63: -9.730466927 | F63: 0.7194340959 | G63: -1.135978948 | H63: -13.91876941 | I63: 0.7068127332 | J63: -1.295349094
D64: 0.118 | E64: -9.724752067 | F64: 0.7171426885 | G64: -1.155422436 | H64: -13.86766583 | I64: 0.7041665644 | J64: -1.316124634
D65: 0.12 | E65: -9.71873601 | F65: 0.7148124061 | G65: -1.174853581 | H65: -13.81574799 | I65: 0.7014790521 | J65: -1.336821891
D66: 0.122 | E66: -9.71240855 | F66: 0.7124432742 | G66: -1.194271748 | H66: -13.763019 | I66: 0.6987503563 | J66: -1.357439651
D67: 0.124 | E67: -9.705759335 | F67: 0.7100353192 | G67: -1.213676286 | H67: -13.70948199 | I67: 0.695980639 | J67: -1.377976704
D68: 0.126 | E68: -9.69877787 | F68: 0.707588569 | G68: -1.233066517 | H68: -13.65514014 | I68: 0.6931700651 | J68: -1.398431842
D69: 0.128 | E69: -9.691453517 | F69: 0.7051030531 | G69: -1.252441746 | H69: -13.59999668 | I69: 0.6903188014 | J69: -1.418803866
D70: =D69+Delta_t -> 0.13 | E70: =-g*SIN(F69/l)-_r*G69 -> -9.6837755 | F70: =F69+G69*Delta_t+E70/2*Delta_t^2 -> 0.702578802 | G70: =G69+(-g*SIN(F69/l)-_r*G69-g*SIN(F70/l)-_r*G69)/2*Delta_t -> -1.271801254 | H70: =-g*(I69/l)-_r*J69 -> -13.54405488 | I70: =I69+J69*Delta_t+H70*Delta_t^2 -> 0.6874270175 | J70: =J69+(-g*I69/l-_r*I70-g*I70-_r*J69)/2*Delta_t -> -1.43909158
D71: 0.132 | E71: -9.675732908 | F71: 0.7000158481 | G71: -1.291144302 | H71: -13.48731808 | I71: 0.684494885 | J71: -1.459293793
D72: 0.134 | E72: -9.667314696 | F72: 0.6974142248 | G72: -1.310470126 | H72: -13.42978964 | I72: 0.6815225783 | J72: -1.479409319
D73: 0.136 | E73: -9.658509687 | F73: 0.6947739676 | G73: -1.329777943 | H73: -13.37147299 | I73: 0.6785102737 | J73: -1.499436978
D74: 0.138 | E74: -9.649306581 | F74: 0.6920951131 | G74: -1.349066943 | H74: -13.31237157 | I74: 0.6754581503 | J74: -1.519375594
D75: 0.14 | E75: -9.63969395 | F75: 0.6893776998 | G75: -1.368336297 | H75: -13.25248891 | I75: 0.6723663892 | J75: -1.539223997
D76: 0.142 | E76: -9.629660248 | F76: 0.6866217679 | G76: -1.387585151 | H76: -13.19182856 | I76: 0.6692351738 | J76: -1.558981023
D77: 0.144 | E77: -9.619193813 | F77: 0.6838273592 | G77: -1.406812628 | H77: -13.13039411 | I77: 0.6660646902 | J77: -1.578645511
D78: 0.146 | E78: -9.608282867 | F78: 0.6809945174 | G78: -1.426017827 | H78: -13.06818922 | I78: 0.6628551264 | J78: -1.598216309
D79: 0.148 | E79: -9.596915526 | F79: 0.6781232879 | G79: -1.445199822 | H79: -13.00521758 | I79: 0.659606673 | J79: -1.617692268
D80: 0.15 | E80: -9.585079799 | F80: 0.6752137181 | G80: -1.464357665 | H80: -12.94148292 | I80: 0.6563195225 | J80: -1.637072246
D81: 0.152 | E81: -9.572763593 | F81: 0.6722658572 | G81: -1.483490384 | H81: -12.87698903 | I81: 0.65299387 | J81: -1.656355105
D82: 0.154 | E82: -9.559954721 | F82: 0.6692797565 | G82: -1.502596979 | H82: -12.81173973 | I82: 0.6496299129 | J82: -1.675539714
D83: 0.156 | E83: -9.546640901 | F83: 0.6662554693 | G83: -1.52167643 | H83: -12.74573889 | I83: 0.6462278505 | J83: -1.694624948
D84: 0.158 | E84: -9.532809764 | F84: 0.6631930508 | G84: -1.540727688 | H84: -12.67899043 | I84: 0.6427878846 | J84: -1.713609688
D85: 0.16 | E85: -9.518448859 | F85: 0.6600925585 | G85: -1.559749683 | H85: -12.6114983 | I85: 0.6393102193 | J85: -1.732492819
D86: 0.162 | E86: -9.503545656 | F86: 0.6569540521 | G86: -1.578741316 | H86: -12.5432665 | I86: 0.6357950606 | J86: -1.751273235
D87: 0.164 | E87: -9.488087552 | F87: 0.6537775933 | G87: -1.597701466 | H87: -12.47429909 | I87: 0.6322426169 | J87: -1.769949834
D88: 0.166 | E88: -9.472061878 | F88: 0.6505632462 | G88: -1.616628983 | H88: -12.40460014 | I88: 0.6286530988 | J88: -1.788521521
D89: 0.168 | E89: -9.455455901 | F89: 0.6473110774 | G89: -1.635522696 | H89: -12.3341738 | I89: 0.6250267191 | J89: -1.806987207
D90: 0.17 | E90: -9.438256833 | F90: 0.6440211554 | G90: -1.654381405 | H90: -12.26302423 | I90: 0.6213636926 | J90: -1.825345809
D91: 0.172 | E91: -9.420451834 | F91: 0.6406935517 | G91: -1.673203885 | H91: -12.19115565 | I91: 0.6176642363 | J91: -1.843596251
D92: 0.174 | E92: -9.40202802 | F92: 0.6373283399 | G92: -1.691988885 | H92: -12.11857232 | I92: 0.6139285695 | J92: -1.861737463
D93: 0.176 | E93: -9.382972468 | F93: 0.6339255962 | G93: -1.71073513 | H93: -12.04527853 | I93: 0.6101569135 | J93: -1.879768381
D94: 0.178 | E94: -9.363272224 | F94: 0.6304853994 | G94: -1.729441316 | H94: -11.97127864 | I94: 0.6063494916 | J94: -1.897687948
D95: 0.18 | E95: -9.342914308 | F95: 0.6270078309 | G95: -1.748106116 | H95: -11.89657703 | I95: 0.6025065294 | J95: -1.915495114
D96: 0.182 | E96: -9.321885718 | F96: 0.6234929749 | G96: -1.766728176 | H96: -11.82117811 | I96: 0.5986282545 | J96: -1.933188835
D97: 0.184 | E97: -9.300173445 | F97: 0.6199409182 | G97: -1.785306113 | H97: -11.74508635 | I97: 0.5947148965 | J97: -1.950768075
D98: 0.186 | E98: -9.277764471 | F98: 0.6163517505 | G98: -1.803838524 | H98: -11.66830627 | I98: 0.5907666871 | J98: -1.968231802
D99: 0.188 | E99: -9.254645782 | F99: 0.6127255641 | G99: -1.822323974 | H99: -11.5908424 | I99: 0.5867838601 | J99: -1.985578994
D100: 0.19 | E100: -9.230804372 | F100: 0.6090624546 | G100: -1.840761006 | H100: -11.51269934 | I100: 0.5827666513 | J100: -2.002808634
D101: 0.192 | E101: -9.206227253 | F101: 0.6053625201 | G101: -1.859148134 | H101: -11.4338817 | I101: 0.5787152985 | J101: -2.019919713
D102: 0.194 | E102: -9.180901464 | F102: 0.601625862 | G102: -1.87748385 | H102: -11.35439416 | I102: 0.5746300415 | J102: -2.036911228
D103: 0.196 | E103: -9.154814073 | F103: 0.5978525847 | G103: -1.895766616 | H103: -11.27424141 | I103: 0.5705111221 | J103: -2.053782184
D104: 0.198 | E104: -9.127952192 | F104: 0.5940427956 | G104: -1.913994871 | H104: -11.19342822 | I104: 0.566358784 | J104: -2.070531591
D105: 0.2 | E105: -9.100302981 | F105: 0.5901966052 | G105: -1.932167028 | H105: -11.11195934 | I105: 0.562173273 | J105: -2.087158471
D106: 0.202 | E106: -9.071853658 | F106: 0.5863141275 | G106: -1.950281473 | H106: -11.02983962 | I106: 0.5579548367 | J106: -2.103661847
D107: 0.204 | E107: -9.042591506 | F107: 0.5823954793 | G107: -1.968336568 | H107: -10.9470739 | I107: 0.5537037247 | J107: -2.120040755
D108: 0.206 | E108: -9.012503887 | F108: 0.5784407812 | G108: -1.986330651 | H108: -10.86366708 | I108: 0.5494201885 | J108: -2.136294234
D109: 0.208 | E109: -8.981578242 | F109: 0.5744501567 | G109: -2.004262031 | H109: -10.7796241 | I109: 0.5451044816 | J109: -2.152421333
D110: 0.21 | E110: -8.949802109 | F110: 0.5704237331 | G110: -2.022128996 | H110: -10.69494993 | I110: 0.5407568591 | J110: -2.168421107
D111: 0.212 | E111: -8.917163127 | F111: 0.5663616407 | G111: -2.039929808 | H111: -10.60964958 | I111: 0.5363775783 | J111: -2.184292621
D112: 0.214 | E112: -8.883649048 | F112: 0.5622640138 | G112: -2.057662705 | H112: -10.52372809 | I112: 0.5319668981 | J112: -2.200034944
D113: 0.216 | E113: -8.849247744 | F113: 0.5581309899 | G113: -2.0753259 | H113: -10.43719054 | I113: 0.5275250795 | J113: -2.215647156
D114: 0.218 | E114: -8.81394722 | F114: 0.5539627102 | G114: -2.092917583 | H114: -10.35004206 | I114: 0.523052385 | J114: -2.231128342
D115: 0.22 | E115: -8.77773562 | F115: 0.5497593196 | G115: -2.11043592 | H115: -10.26228779 | I115: 0.5185490792 | J115: -2.246477596
D116: 0.222 | E116: -8.740601241 | F116: 0.5455209665 | G116: -2.127879054 | H116: -10.17393293 | I116: 0.5140154283 | J116: -2.261694021
D117: 0.224 | E117: -8.70253254 | F117: 0.5412478034 | G117: -2.145245104 | H117: -10.0849827 | I117: 0.5094517003 | J117: -2.276776724
D118: 0.226 | E118: -8.663518146 | F118: 0.5369399861 | G118: -2.162532169 | H118: -9.99544236 | I118: 0.5048581651 | J118: -2.291724825
D119: 0.228 | E119: -8.62354687 | F119: 0.5325976747 | G119: -2.179738324 | H119: -9.905317199 | I119: 0.5002350941 | J119: -2.306537449
D120: 0.23 | E120: -8.582607714 | F120: 0.5282210328 | G120: -2.196861621 | H120: -9.814612547 | I120: 0.4955827608 | J120: -2.321213728
D121: 0.232 | E121: -8.540689885 | F121: 0.5238102282 | G121: -2.213900094 | H121: -9.723333767 | I121: 0.49090144 | J121: -2.335752805
D122: 0.234 | E122: -8.497782802 | F122: 0.5193654325 | G122: -2.230851753 | H122: -9.631486253 | I122: 0.4861914085 | J122: -2.350153829
D123: 0.236 | E123: -8.453876106 | F123: 0.5148868212 | G123: -2.247714589 | H123: -9.539075434 | I123: 0.4814529445 | J123: -2.364415958
D124: 0.238 | E124: -8.408959678 | F124: 0.5103745741 | G124: -2.264486572 | H124: -9.446106771 | I124: 0.4766863282 | J124: -2.378538358
D125: 0.24 | E125: -8.363023641 | F125: 0.5058288749 | G125: -2.281165654 | H125: -9.352585758 | I125: 0.4718918411 | J125: -2.392520202
D126: 0.242 | E126: -8.316058376 | F126: 0.5012499115 | G126: -2.297749767 | H126: -9.258517922 | I126: 0.4670697666 | J126: -2.406360675
D127: 0.244 | E127: -8.26805453 | F127: 0.4966378758 | G127: -2.314236825 | H127: -9.163908821 | I127: 0.4622203896 | J127: -2.420058966
D128: 0.246 | E128: -8.219003033 | F128: 0.4919929642 | G128: -2.330624723 | H128: -9.068764045 | I128: 0.4573439966 | J128: -2.433614274
D129: 0.248 | E129: -8.168895099 | F129: 0.487315377 | G129: -2.34691134 | H129: -8.973089214 | I129: 0.4524408757 | J129: -2.447025808
D130: 0.25 | E130: -8.117722248 | F130: 0.4826053188 | G130: -2.363094539 | H130: -8.876889982 | I130: 0.4475113166 | J130: -2.460292784
D131: 0.252 | E131: -8.065476309 | F131: 0.4778629988 | G131: -2.379172164 | H131: -8.780172031 | I131: 0.4425556103 | J131: -2.473414427
D132: 0.254 | E132: -8.012149434 | F132: 0.4730886302 | G132: -2.395142048 | H132: -8.682941074 | I132: 0.4375740497 | J132: -2.486389969
D133: 0.256 | E133: -7.957734109 | F133: 0.4682824306 | G133: -2.411002005 | H133: -8.585202855 | I133: 0.4325669289 | J133: -2.499218654
D134: =D133+Delta_t -> 0.258 | E134: =-g*SIN(F133/l)-_r*G133 -> -7.902223166 | F134: =F133+G133*Delta_t+E134/2*Delta_t^2 -> 0.4634446222 | G134: =G133+(-g*SIN(F133/l)-_r*G133-g*SIN(F134/l)-_r*G133)/2*Delta_t -> -2.426749838 | H134: =-g*(I133/l)-_r*J133 -> -8.486963146 | I134: =I133+J133*Delta_t+H134*Delta_t^2 -> 0.4275345438 | J134: =J133+(-g*I133/l-_r*I134-g*I134-_r*J133)/2*Delta_t -> -2.511899731
D135: 0.26 | E135: -7.845609792 | F135: 0.4585754313 | G135: -2.442383335 | H135: -8.388227749 | I135: 0.4224771914 | J135: -2.52443246
D136: 0.262 | E136: -7.78788754 | F136: 0.4536750888 | G136: -2.457900273 | H136: -8.289002495 | I136: 0.4173951705 | J136: -2.536816109
D137: 0.264 | E137: -7.729050342 | F137: 0.4487438302 | G137: -2.473298416 | H137: -8.189293245 | I137: 0.4122887811 | J137: -2.549049955
D138: 0.266 | E138: -7.669092516 | F138: 0.4437818951 | G138: -2.488575518 | H138: -8.089105885 | I138: 0.4071583247 | J138: -2.561133284
D139: 0.268 | E139: -7.608008781 | F139: 0.4387895281 | G139: -2.503729321 | H139: -7.988446332 | I139: 0.4020041044 | J139: -2.573065391
D140: 0.27 | E140: -7.545794265 | F140: 0.4337669779 | G140: -2.518757559 | H140: -7.887320528 | I140: 0.3968264243 | J140: -2.584845579
D141: 0.272 | E141: -7.482444513 | F141: 0.4287144979 | G141: -2.533657959 | H141: -7.785734445 | I141: 0.3916255902 | J141: -2.59647316
D142: 0.274 | E142: -7.417955504 | F142: 0.423632346 | G142: -2.548428239 | H142: -7.68369408 | I142: 0.3864019091 | J142: -2.607947457
D143: 0.276 | E143: -7.352323653 | F143: 0.4185207849 | G143: -2.563066108 | H143: -7.581205457 | I143: 0.3811556894 | J143: -2.6192678
D144: 0.278 | E144: -7.285545828 | F144: 0.4133800816 | G144: -2.577569273 | H144: -7.478274626 | I144: 0.3758872407 | J144: -2.630433528
D145: 0.28 | E145: -7.217619355 | F145: 0.4082105078 | G145: -2.591935435 | H145: -7.374907663 | I145: 0.370596874 | J145: -2.641443991
D146: 0.282 | E146: -7.148542029 | F146: 0.4030123399 | G146: -2.606162289 | H146: -7.271110668 | I146: 0.3652849016 | J146: -2.652298547
D147: 0.284 | E147: -7.078312123 | F147: 0.3977858587 | G147: -2.620247529 | H147: -7.166889769 | I147: 0.3599516369 | J147: -2.662996562
D148: 0.286 | E148: -7.0069284 | F148: 0.3925313497 | G148: -2.634188848 | H148: -7.062251117 | I148: 0.3545973948 | J148: -2.673537414
D149: 0.288 | E149: -6.934390115 | F149: 0.3872491033 | G149: -2.647983935 | H149: -6.957200886 | I149: 0.3492224912 | J149: -2.683920487
D150: 0.29 | E150: -6.86069703 | F150: 0.381939414 | G150: -2.661630481 | H150: -6.851745277 | I150: 0.3438272432 | J150: -2.694145178
D151: 0.292 | E151: -6.785849421 | F151: 0.3766025813 | G151: -2.675126179 | H151: -6.745890512 | I151: 0.3384119693 | J151: -2.70421089
D152: 0.294 | E152: -6.709848083 | F152: 0.3712389093 | G152: -2.688468721 | H152: -6.639642838 | I152: 0.332976989 | J152: -2.714117037
D153: 0.296 | E153: -6.63269434 | F153: 0.3658487065 | G153: -2.701655806 | H153: -6.533008523 | I153: 0.3275226229 | J153: -2.723863042
D154: 0.298 | E154: -6.55439005 | F154: 0.3604322861 | G154: -2.714685133 | H154: -6.42599386 | I154: 0.3220491928 | J154: -2.733448339
D155: 0.3 | E155: -6.474937618 | F155: 0.3549899659 | G155: -2.727554411 | H155: -6.318605163 | I155: 0.3165570217 | J155: -2.742872368
D156: 0.302 | E156: -6.394339995 | F156: 0.3495220684 | G156: -2.740261352 | H156: -6.210848766 | I156: 0.3110464336 | J156: -2.752134582
D157: 0.304 | E157: -6.312600687 | F157: 0.3440289205 | G157: -2.752803676 | H157: -6.102731027 | I157: 0.3055177535 | J157: -2.761234443
D158: 0.306 | E158: -6.229723764 | F158: 0.3385108537 | G158: -2.765179114 | H158: -5.994258323 | I158: 0.2999713076 | J158: -2.770171419
D159: 0.308 | E159: -6.14571386 | F159: 0.3329682041 | G159: -2.777385404 | H159: -5.885437054 | I159: 0.294407423 | J159: -2.778944993
D160: 0.31 | E160: -6.060576183 | F160: 0.3274013121 | G160: -2.789420296 | H160: -5.776273639 | I160: 0.2888264279 | J160: -2.787554654
D161: 0.312 | E161: -5.974316516 | F161: 0.3218105229 | G161: -2.801281554 | H161: -5.666774515 | I161: 0.2832286515 | J161: -2.795999902
D162: 0.314 | E162: -5.886941223 | F162: 0.3161961859 | G162: -2.812966953 | H162: -5.556946142 | I162: 0.2776144239 | J162: -2.804280245
D163: 0.316 | E163: -5.798457251 | F163: 0.3105586551 | G163: -2.824474282 | H163: -5.446794997 | I163: 0.2719840762 | J163: -2.812395204
D164: 0.318 | E164: -5.708872134 | F164: 0.3048982888 | G164: -2.835801348 | H164: -5.336327576 | I164: 0.2663379405 | J164: -2.820344307
D165: 0.32 | E165: -5.618193999 | F165: 0.2992154497 | G165: -2.846945974 | H165: -5.225550393 | I165: 0.2606763497 | J165: -2.828127092
D166: 0.322 | E166: -5.52643156 | F166: 0.2935105049 | G166: -2.857905999 | H166: -5.114469981 | I166: 0.2549996376 | J166: -2.835743109
D167: 0.324 | E167: -5.43359413 | F167: 0.2877838257 | G167: -2.868679285 | H167: -5.00309289 | I167: 0.249308139 | J167: -2.843191914
D168: 0.326 | E168: -5.339691613 | F168: 0.2820357877 | G168: -2.879263711 | H168: -4.891425688 | I168: 0.2436021895 | J168: -2.850473078
D169: 0.328 | E169: -5.24473451 | F169: 0.2762667708 | G169: -2.88965718 | H169: -4.779474958 | I169: 0.2378821255 | J169: -2.857586176
D170: 0.33 | E170: -5.148733918 | F170: 0.270477159 | G170: -2.899857615 | H170: -4.667247301 | I170: 0.2321482841 | J170: -2.864530798
D171: 0.332 | E171: -5.051701528 | F171: 0.2646673404 | G171: -2.909862966 | H171: -4.554749334 | I171: 0.2264010035 | J171: -2.871306541
D172: 0.334 | E172: -4.953649626 | F172: 0.2588377071 | G172: -2.919671207 | H172: -4.441987689 | I172: 0.2206406225 | J172: -2.877913014
D173: 0.336 | E173: -4.85459109 | F173: 0.2529886555 | G173: -2.929280338 | H173: -4.328969013 | I173: 0.2148674806 | J173: -2.884349833
D174: 0.338 | E174: -4.754539388 | F174: 0.2471205858 | G174: -2.938688385 | H174: -4.215699969 | I174: 0.2090819181 | J174: -2.890616626
D175: 0.34 | E175: -4.653508577 | F175: 0.241233902 | G175: -2.947893407 | H175: -4.102187233 | I175: 0.2032842761 | J175: -2.896713032
D176: 0.342 | E176: -4.551513296 | F176: 0.2353290122 | G176: -2.956893489 | H176: -3.988437497 | I176: 0.1974748963 | J176: -2.902638698
D177: 0.344 | E177: -4.448568765 | F177: 0.229406328 | G177: -2.965686749 | H177: -3.874457465 | I177: 0.1916541211 | J177: -2.908393283
D178: 0.346 | E178: -4.344690782 | F178: 0.2234662652 | G178: -2.974271335 | H178: -3.760253855 | I178: 0.1858222935 | J178: -2.913976453
D179: 0.348 | E179: -4.239895713 | F179: 0.2175092427 | G179: -2.982645432 | H179: -3.645833398 | I179: 0.1799797572 | J179: -2.919387888
D180: 0.35 | E180: -4.13420049 | F180: 0.2115356834 | G180: -2.990807255 | H180: -3.531202837 | I180: 0.1741268567 | J180: -2.924627275
D181: 0.352 | E181: -4.027622603 | F181: 0.2055460137 | G181: -2.998755057 | H181: -3.416368928 | I181: 0.1682639366 | J181: -2.929694314
D182: 0.354 | E182: -3.920180095 | F182: 0.1995406632 | G182: -3.006487129 | H182: -3.301338437 | I182: 0.1623913427 | J182: -2.934588711
D183: 0.356 | E183: -3.811891552 | F183: 0.1935200652 | G183: -3.014001797 | H183: -3.186118143 | I183: 0.1565094208 | J183: -2.939310187
D184: 0.358 | E184: -3.702776097 | F184: 0.187484656 | G184: -3.021297426 | H184: -3.070714835 | I184: 0.1506185175 | J184: -2.943858469
D185: 0.36 | E185: -3.59285338 | F185: 0.1814348755 | G185: -3.028372423 | H185: -2.955135314 | I185: 0.14471898 | J185: -2.948233298
D186: 0.362 | E186: -3.48214357 | F186: 0.1753711663 | G186: -3.035225234 | H186: -2.839386389 | I186: 0.1388111559 | J186: -2.952434421
D187: 0.364 | E187: -3.370667342 | F187: 0.1692939745 | G187: -3.041854347 | H187: -2.723474879 | I187: 0.1328953932 | J187: -2.9564616
D188: 0.366 | E188: -3.258445872 | F188: 0.1632037489 | G188: -3.048258294 | H188: -2.607407614 | I188: 0.1269720403 | J188: -2.960314604
D189: 0.368 | E189: -3.145500821 | F189: 0.1571009413 | G189: -3.054435649 | H189: -2.491191431 | I189: 0.1210414464 | J189: -2.963993212
D190: 0.37 | E190: -3.031854326 | F190: 0.1509860063 | G190: -3.060385032 | H190: -2.374833178 | I190: 0.1151039606 | J190: -2.967497215
D191: 0.372 | E191: -2.917528987 | F191: 0.1448594012 | G191: -3.066105109 | H191: -2.258339707 | I191: 0.1091599328 | J191: -2.970826413
D192: 0.374 | E192: -2.802547856 | F192: 0.1387215859 | G192: -3.071594592 | H192: -2.141717882 | I192: 0.1032097131 | J192: -2.973980618
D193: 0.376 | E193: -2.686934419 | F193: 0.1325730228 | G193: -3.076852239 | H193: -2.024974571 | I193: 0.09725365198 | J193: -2.976959651
D194: 0.378 | E194: -2.570712589 | F194: 0.1264141769 | G194: -3.081876858 | H194: -1.908116652 | I194: 0.09129210021 | J194: -2.979763343
D195: 0.38 | E195: -2.453906688 | F195: 0.1202455154 | G195: -3.086667306 | H195: -1.791151006 | I195: 0.08532540892 | J195: -2.982391537
D196: 0.382 | E196: -2.336541431 | F196: 0.1140675077 | G196: -3.091222489 | H196: -1.674084523 | I196: 0.07935392951 | J196: -2.984844083
D197: 0.384 | E197: -2.218641915 | F197: 0.1078806255 | G197: -3.095541365 | H197: -1.556924097 | I197: 0.07337801365 | J197: -2.987120846
D198: =D197+Delta_t -> 0.386 | E198: =-g*SIN(F197/l)-_r*G197 -> -2.100233599 | F198: =F197+G197*Delta_t+E198/2*Delta_t^2 -> 0.1016853423 | G198: =G197+(-g*SIN(F197/l)-_r*G197-g*SIN(F198/l)-_r*G197)/2*Delta_t -> -3.099622941 | H198: =-g*(I197/l)-_r*J197 -> -1.439676628 | I198: =I197+J197*Delta_t+H198*Delta_t^2 -> 0.06739801325 | J198: =J197+(-g*I197/l-_r*I198-g*I198-_r*J197)/2*Delta_t -> -2.989221697
D199: 0.388 | E199: -1.981342291 | F199: 0.0954821337 | G199: -3.103466277 | H199: -1.32234902 | I199: 0.06141428046 | J199: -2.99114652
D200: 0.39 | E200: -1.86199413 | F200: 0.08927147715 | G200: -3.107070487 | H200: -1.204948183 | I200: 0.05542716763 | J200: -2.992895209
D201: 0.392 | E201: -1.74221557 | F201: 0.08305385175 | G201: -3.110434736 | H201: -1.087481029 | I201: 0.04943702729 | J201: -2.994467667
... 4804 more rows
